Cogmind - Beta 13 @@@ ROGUE MODE // 2024.04.04 @ 22:31:56 Player: Jellyman Result: Destroyed by Y-45 Defender with Beam Rifle Performance ------------- Evolutions (0) 0 Regions Visited (2) 400 Robots Destroyed (11) 55 Value Destroyed (341) 341 Prototype IDs (0) 0 Alien Tech Used (0) 0 Bonus (0) 0 TOTAL SCORE: 796 Bonus ------- None Cogmind --------- Core Integrity 0/250 Matter 295/300 Energy 100/100 System Corruption 0% Temperature Cool (9) Movement Walking (190) Ox1 Location -10/Mines Parts ------- > --- POWER (1) -------- (None) > --- PROPULSION (2) --- Aluminum Leg Aluminum Leg > --- UTILITY (2) ------ Large Storage Unit Seismic Detector > --- WEAPON (2) ------- Small Laser > --- INVENTORY (15) --- Aluminum Leg Aluminum Leg Large Matter Pod (150) Peak State ------------ > --- POWER ------------ Light Nuclear Core > --- PROPULSION ------- Aluminum Leg Aluminum Leg > --- UTILITY ---------- Large Storage Unit Seismic Detector > --- WEAPON ----------- Small Laser Assault Rifle > --- INVENTORY -------- Ion Engine Ion Engine Aluminum Leg Aluminum Leg Aluminum Leg Aluminum Leg Small Laser [Rating: 9] Favorites ----------- Power Ion Engine Engine Ion Engine Power Core Light Nuclear Core Propulsion Aluminum Leg Leg Aluminum Leg Utility Seismic Detector Device Seismic Detector Storage Large Storage Unit Protection Utility Shielding Weapon Small Laser Energy Gun Small Laser Ballistic Gun Assault Rifle Build | -11 -10 -10 ------- Run | Yrd Mat Min Slots Evolved . | . . . Power . | . . . Propulsion . | . . . Utility . | . . . Weapon . | . . . Parts Attached 15 | 4 5 6 Power 3 | 1 . 2 Engine 2 | 1 . 1 Core 1 | . . 1 Reactor . | . . . Propulsion 5 | 1 1 3 Treads . | . . . Leg 5 | 1 1 3 Wheel . | . . . Hover . | . . . Flight . | . . . Utility 4 | 1 3 . Device 1 | . 1 . Storage 2 | 1 1 . Processor . | . . . Hackware . | . . . Protection 1 | . 1 . Artifact . | . . . Weapon 3 | 1 1 1 Energy Gun 2 | 1 . 1 Energy Cannon . | . . . Ballistic Gun 1 | . 1 . Ballistic Cannon . | . . . Launcher . | . . . Special Weapon . | . . . Impact Weapon . | . . . Slashing Weapon . | . . . Piercing Weapon . | . . . Special Melee Weapon . | . . . Unidentified Prototypes . | . . . Parts Lost 7 | . . 7 Power 2 | . . 2 Propulsion 3 | . . 3 Utility . | . . . Weapon 2 | . . 2 Highest Loss Streak 4 | . . 4 To Critical Strikes . | . . . Average Slot Usage (%) 97 | . 97 96 Engine 9 | . 14 8 Core 4 | . . 5 Leg 27 | . 28 27 Device 12 | . 6 14 Storage 14 | . 14 14 Protection 1 | . 6 . Energy Gun 17 | . 14 18 Ballistic Gun 9 | . 14 8 Naked Turns . | . . . Heaviest Build 29 | 11 29 29 Greatest Support 20 | 10 20 20 Greatest Overweight (x) 2 | 1 1 2 Average Overweight (x) . | . . 1 Largest Inventory Capacity 15 | 8 15 15 Average Capacity 13 | 7 9 15 Most Carried 8 | 6 8 8 Average Carried 5 | 5 6 5 Final Capacity 15 | 8 15 15 Final Carried 8 | 6 8 3 Class Distribution -------------------- 100% | Mutant Dominant Class ---------------- Mutant | -10/Materials Mutant | -10/Mines Resources | -11 -10 -10 ----------- Run | Yrd Mat Min Matter Collected 408 | 213 69 126 Remotely . | . . . Salvage Created 391 | . 82 309 Parts 24 | . 6 18 Haulers Intercepted . | . . . Recyclers Shooed . | . . . Parts Field Recycled . | . . . Retrieved Matter . | . . . Parts Self-Destructed . | . . . Prevented . | . . . Kills | -11 -10 -10 ------- Run | Yrd Mat Min Combat Hostiles Destroyed 11 | . 2 9 Guns 10 | . 2 8 Classes Destroyed 2 | . 1 1 Swarmer 3 | . . 3 Grunt 8 | . 2 6 Best Kill Streak 3 | . 2 3 Combat Bots Only 3 | . 2 3 Max Kills in Single Turn 1 | . 1 1 Gunslinging . | . . . Exploded . | . . . Melee . | . . . Uniques/NPCs Destroyed . | . . . Combat | -11 -10 -10 -------- Run | Yrd Mat Min Hostile Shots Fired 108 | . 5 103 Missed 26 | . 1 25 Damage Taken 1053 | . 45 1008 Core 260 | . . 260 Absorbed by Shields . | . . . Core Remaining (%) 100 | 100 . . Volleys Fired 43 | . 4 39 Largest 2 | . 2 2 Hottest 80 | . 60 80 Shots Fired 79 | . 8 71 Gun 79 | . 8 71 Cannon . | . . . Launcher . | . . . Special . | . . . Kinetic 30 | . 4 26 Thermal 49 | . 4 45 Explosive . | . . . Electromagnetic . | . . . Robot Hit Streak 10 | . 3 10 Robot Miss Streak 3 | . 3 2 Penetration Max . | . . . Secondary Targets 1 | . . 1 Max Gunslinging Chain 1 | . . 1 Shots Hit Robots 55 | . 4 51 Core Hits 19 | . 3 16 Critical Kills . | . . . Critical Parts Destroyed . | . . . Critical Strikes . | . . . Melee Attacks . | . . . Impact . | . . . Slashing . | . . . Piercing . | . . . Sneak Attacks . | . . . Combat Hostiles . | . . . Follow-up Attacks . | . . . Damage Inflicted 648 | . 52 596 Guns 638 | . 50 588 Cannons . | . . . Explosions . | . . . Melee . | . . . Ramming 10 | . 2 8 Kinetic 260 | . 15 245 Thermal 378 | . 35 343 Explosive . | . . . Electromagnetic . | . . . Impact . | . . . Slashing . | . . . Piercing . | . . . Highest Corruption . | . . . Average Corruption . | . . . Corruption Purged . | . . . Corruption Blocked . | . . . Overload Shots . | . . . Overflow Damage . | . . . Projectiles . | . . . Explosions . | . . . Melee . | . . . Knockbacks 1 | . . 1 Impact 1 | . . 1 Kinetic . | . . . Secondary . | . . . Self-Inflicted Damage . | . . . Shots . | . . . Rammed . | . . . Targets Rammed 2 | . 1 1 Kicked 2 | . 1 1 Crushed . | . . . Highest Temperature 208 | . 18 208 Average Temperature 62 | . 13 67 Received Heat Transfer 531 | . 24 507 Siege Activations . | . . . Robots Corrupted . | . . . Combat Hostiles . | . . . Parts Fried . | . . . Impact Corruptions . | . . . Robots Melted 1 | . . 1 Combat Hostiles 1 | . . 1 Parts Melted 3 | . . 3 Heat Transferred 850 | . 75 775 Parts Sabotaged . | . . . Parts Stolen . | . . . Parts Stripped . | . . . Power Chain Reactions . | . . . Alert | -11 -10 -10 ------- Run | Yrd Mat Min Peak Influence 115 | . 40 115 Initial 15 | . . 15 Average 54 | . 26 66 Maximum Alert Level . | . . . Low Security (%) 100 | 100 100 100 Level 1 . | . . . Level 2 . | . . . Level 3 . | . . . Level 4 . | . . . Level 5 . | . . . High Security . | . . . Max Security . | . . . Squads Dispatched . | . . . Investigation . | . . . Extermination . | . . . Reinforcement . | . . . Assault . | . . . Garrison . | . . . Intercept . | . . . Searches Triggered . | . . . Construction Impeded . | . . . Haulers Reinforced . | . . . Active Scanning Responses . | . . . Cargo Convoy Interrupts . | . . . Stealth | -11 -10 -10 --------- Run | Yrd Mat Min Distress Signals . | . . . Communications Jammed . | . . . Distress Signals . | . . . Times Spotted 13 | . 2 11 Peak Tracking Total 2 | . 2 2 Tactical Retreats . | . . . Traps | -11 -10 -10 ------- Run | Yrd Mat Min Traps Triggered . | . . . Indirectly . | . . . Trap Hack Attempts . | . . . Triggered . | . . . Disarmed . | . . . Reprogrammed . | . . . Reused . | . . . Traps Extracted . | . . . Installed . | . . . Triggered . | . . . Machines | -11 -10 -10 ---------- Run | Yrd Mat Min Machines Disabled . | . . . Max in Single Turn . | . . . Machines Repaired . | . . . Machines Dismantled . | . . . Machines Sabotaged . | . . . Overloaded Fab Kills . | . . . Hacking | -11 -10 -10 --------- Run | Yrd Mat Min Machines Accessed . | . . . Terminals . | . . . Fabricators . | . . . Repair Stations . | . . . Recycling Units . | . . . Scanalyzers . | . . . Garrison Access . | . . . Total Hacks . | . . . Successful . | . . . Failed . | . . . Catastrophic . | . . . Database Lockouts . | . . . Manual . | . . . Terminals . | . . . Fabricators . | . . . Repair Stations . | . . . Recycling Units . | . . . Scanalyzers . | . . . Garrison Access . | . . . Terminal Hacks . | . . . Fabricator Hacks . | . . . Repair Station Hacks . | . . . Recycling Unit Hacks . | . . . Scanalyzer . | . . . Garrison Access Hacks . | . . . Unauthorized Hacks . | . . . Terminals . | . . . Fabricators . | . . . Repair Stations . | . . . Recycling Units . | . . . Scanalyzers . | . . . Garrison Access . | . . . Data Cores Recovered . | . . . Used . | . . . Hacking Detections . | . . . Full Trace Events . | . . . Feedback Events . | . . . Feedback Blocked . | . . . Robot Schematics Acquired . | . . . Robots Built . | . . . Authchips . | . . . Time . | . . . Total Robot Build Rating . | . . . Part Schematics Acquired . | . . . Parts Built . | . . . Authchips . | . . . Time . | . . . Total Part Build Rating . | . . . Parts Repaired . | . . . Time . | . . . Parts Recycled . | . . . Recycled Matter . | . . . Retrieved Matter . | . . . Retrieved Components . | . . . Parts Scanalyzed . | . . . Part Schematics Acquired . | . . . Parts Damaged . | . . . Bothacking | -11 -10 -10 ------------ Run | Yrd Mat Min Used RIF Installer . | . . . Robots Hacked . | . . . Non-combat . | . . . Combat . | . . . Robot Hacks Applied . | . . . Relay Couplers Released . | . . . Fabnet Peak Effective % . | . . . Robots Rewired . | . . . Allies Hacked . | . . . Hacks Repelled . | . . . Allies | -11 -10 -10 -------- Run | Yrd Mat Min Total Allies . | . . . Largest Group . | . . . Highest-Rated Group . | . . . Highest-Rated Ally . | . . . Total Orders . | . . . Ally Attacks . | . . . Total Damage . | . . . Kills . | . . . Allies Corrupted . | . . . Allies Melted . | . . . Intel | -11 -10 -10 ------- Run | Yrd Mat Min Robot Analysis Total . | . . . Derelict Logs Recovered 1 | . . 1 Drone Launches . | . . . Drone Recoveries . | . . . Exploration | -11 -10 -10 ------------- Run | Yrd Mat Min Turns Passed 1106 | 76 204 826 Spaces Moved 539 | 42 133 364 Core 10 | 10 . . Treads . | . . . Legs 529 | 32 133 364 Wheels . | . . . Hover . | . . . Flight . | . . . Fastest Speed 50 | 50 120 190 Average Speed 173 | 153 130 191 Slowest Speed 260 | 190 190 260 Overloaded Moves . | . . . Propulsion Burnouts . | . . . Robots Hopped . | . . . Cave-ins Triggered . | . . . Exploration Rate (%) 34 | 4 21 79 Regions Visited 2 Branch Regions 1 Pre-discovered Areas 1 | . . 1 Known Exits Taken . | . . . Unknown Exits Taken 2 | 1 1 . Scrap Searched . | . . . Spaces Dug . | . . . Terrain Destroyed . | . . . Melee . | . . . Projectile . | . . . AOE . | . . . Terrain Rammed . | . . . Walls Destroyed . | . . . Machines Disabled . | . . . Actions | -11 -10 -10 --------- Run | Yrd Mat Min Total 632 | 54 156 422 Wait 7 | . 7 . Move 537 | 41 132 364 Hop . | . . . Pick Up 20 | 9 5 6 Fast Attach 2 | 1 1 . Attach 11 | 3 3 5 Detach . | . . . Swap 2 | . 1 1 Drop 8 | . 2 6 Fire 43 | . 4 39 Melee . | . . . Ram . | . . . Kick 2 | . 1 1 Crush . | . . . Escape Stasis . | . . . Rewire . | . . . Trap . | . . . Miscellaneous . | . . . Route ------- -11/Scrapyard -10/Materials -10/Mines History --------- Turn | Location | Event 6 | -11/Scrapyard | Discovered new exit (range 15) 77 | -11/Scrapyard | Entered Materials 196 | -10/Materials | Discovered new exit (range 12) 281 | -10/Materials | Entered Mines 302 | -10/Mines | Build established: Mutant 530 | -10/Mines | Learned location of Storage (-9) 750 | -10/Mines | Core integrity fell below 50% 791 | -10/Mines | Lost 4 parts (1p2n1w) 1077 | -10/Mines | Core integrity fell below 20% 1107 | -10/Mines | Destroyed by Y-45 Defender with Beam Rifle Last Messages --------------- 00775_ G-34 Mercenary destroyed. 00786_ R-06 Scavenger collects Ion Engine. 00792_ Acquired Aluminum Leg. 00794_ Acquired 20 matter. 00799_ U-05 Engineer lays Concrete. 00807_ U-05 Engineer builds a Wall. 00809_ T-07 Excavator is excavating. 00811_ U-05 Engineer builds a Wall. 00815_ U-05 Engineer lays Concrete. 00820_ T-07 Excavator is excavating. 01001_ S-10 Pest destroyed. 01006_ Sml. Laser destroyed. 01007_ S-10 Pest destroyed. 01016_ R-06 Scavenger collects Lgt. Ion Engine. 01017_ Flight Unit melted. 01017_ S-10 Pest destroyed. 01023_ K-01 Serf collects debris. 01098_ Aluminum Leg destroyed. 01101_ Critical hit (Burn: +37). 01106_ Ion Engine destroyed. Map ----- +----------------------------------------------------+ | #??## ##?????????????????###### """ #?? | | " #??# ##????????????????# *%[#?? | | " #??# ######???????????# #### [%*=#?? | | " #???# ## ##??????????# #??# =#?? | | #?????# ############ #??#######?? | | #??????# #??????????? | | #??????# ##############??????????? | | ## ##??????## ## ##???????????????????????? | | ?# ########## #### ##????????????????????????? | | ?# %%% #??####?????????????????????????? | | ?# ############???????????????????????????????? | | ## #??????????????????????????????????????????? | | #??????????????????????????????????????????? | | ####??????????????????????????????????????????? | | ??????????????????????????????????????????????? | | ????????????????????????????????###???????????? | | #?????????????????????????????## ##??????????? | | #???????????????????????????### #??????????? | | #??????????????????????????## #??????????? | | #?????????????????????????## #??????????? | | #?????????????????????????# #??????????? | | #???????????????#####?????# #???????????? | | #????????????#### ##????# #????????????? | | #???????????## ####### ##???????????? | | #??????????## #####???????? | | #?????##!??# Y @ ##??????? | | #?????#"]! # Y ###### ##?????? | | #?????# + # ###### #?????? | | ##????# / # #### =% #?????? | | ####?#"!! # ##??#%=# #????? | | ####![## ##???# =## ### #???? | | ####?### ## #????# ## ##?? #?? | | #?????#### #???## ### ###???? #? | | ### #????????# #??## ### #####???? #? | | ##?## #????????# #?## ## ##???? ##? | | #??## ##?#####?# ### ##???? ##?? | | #### ### ### ## #????? #??? | | ## ## #?????? ??? | | ## ## ## #?????????? | | #### #?????????? | | #??## ##????????? | | ### # ##???## ####?????? | | ## ##?# ## #####????## ##????? | | #######??# ##%##???????## #????? | | ##????????# ## #???????## #????? | | ##?????????# ## #???????# ##????? | | ##??????????# %#??????## ### #?????? | | #???????????# ####???#### #??## #?????? | | ???????????## ##???## #???# #?????? | | ???????##### #??## #???## ##????? | +----------------------------------------------------+ Best States ------------- Heat Dissipation 25 Energy Generation 14 Energy Capacity 250 Matter Stores 300 Matter Capacity 300 Sight Range 16 Terrain Scan Density 10 Utility Shielding 33 Evasion (%) 55 Item Schematics ----------------- None Robot Schematics ------------------ None Fabricated ------------ Nothing Alien Tech Used ----------------- None Achievements -------------- None Challenges ------------ None Game ------ Seed DiametricPoweredRouter Manual? 0 Play Time 00:08:42 Cumulative 7.4 hours Start 2024.04.04 @ 22:26:13 End 2024.04.04 @ 22:31:56 Sessions 1 Manual Loads 0 Difficulty Rogue Special Mode None Game No. 19 Rogue 19 Adventurer 0 Explorer 0 Win Type - Total 0 Types 0/0/0/0/0/0/0/0/0 Lore% 5 Gallery% 14 Achievement% 11 Wizard Run 0 Options --------- Layout 2 ASCII 0 Keyboard 0 Movement Mouse Keybinds 0 Fullscreen 2 Font 24/Smallcaps Map View 50x44 Zoom Use 0% Tactical HUD 1 Map Filters NONE Filters NONE Steam 1 RUN: f80ace14-a2a8-4738-98b3-89678566c3ea